bitfinex-derivatives/quotes_BNBF0:USTF0_20250521
["timestamp","ask_amount","ask_price","bid_price","bid_amount"]
[1747826370072,3.82008945,655.75,653.91,0.90563596]
[1747826370277,3.82008945,655.75,653.92,0.90563596]
[1747826370473,3.82008945,655.75,653.93,2.06829432]
[1747826370677,3.82008945,655.75,653.94,0.90563596]
[1747826370976,3.82008945,655.75,653.95,0.90563596]
[1747826371174,3.82008945,655.75,653.96,2.06829432]
[1747826371373,3.82008945,655.75,653.97,0.90563596]
[1747826371573,3.82008945,655.75,653.98,2.06829432]
[1747826371774,3.82008945,655.75,653.99,1.2111431]
[1747826372074,3.82008945,655.75,654.0,2.06829432]
[1747826372274,3.82008945,655.75,654.01,0.90563596]
[1747826372477,3.82008945,655.75,654.02,2.06829428]
[1747826372681,3.82008945,655.75,654.03,2.06829428]
[1747826372874,3.82008945,655.75,654.04,0.90563592]
[1747826373074,3.82008945,655.75,654.05,2.06829428]
[1747826373275,3.82008945,655.75,654.06,0.60012966]
[1747826373473,3.82008945,655.75,654.07,1.16265836]
[1747826373679,3.82008945,655.75,654.08,1.76233687]
[1747826373873,3.82008945,655.75,654.09,0.59967851]
[1747826374078,3.82008945,655.75,654.1,0.59967851]
[1747826374279,3.82008945,655.75,654.11,0.59967851]
[1747826374579,3.82008945,655.75,654.12,0.90518565]
[1747826374774,3.82008945,655.75,654.13,0.59967851]
[1747826374977,3.82008945,655.75,654.14,0.59967851]
[1747826375178,3.82008945,655.75,654.12,0.30550714]
[1747826375379,3.82008945,655.75,654.13,0.59959252]
[1747826375578,3.82008945,655.75,654.14,0.59959252]
[1747826375780,3.82008945,655.75,654.15,0.59959252]
[1747826375980,3.82008945,655.75,654.16,0.59959252]
[1747826376179,3.82008945,655.75,653.72,0.38994502]
[1747826376180,3.82008945,656.09,654.17,0.59959252]
[1747826376480,3.82008945,656.09,654.18,0.59959252]
[1747826376676,3.82008945,656.09,654.19,0.59959252]
[1747826376877,3.82008945,656.09,654.2,0.59959252]
[1747826377080,3.82008945,656.09,654.21,0.59906285]
[1747826377282,3.82008945,656.09,654.15,0.30550714]
[1747826377482,3.82008945,656.09,654.16,1.75847623]
[1747826377683,3.82008945,656.09,654.17,0.59892471]
[1747826377984,3.82008945,656.09,654.18,0.59892471]
[1747826378178,3.82008945,656.09,654.19,0.59892471]
[1747826378379,3.82008945,656.09,654.2,0.90443185]
[1747826378579,3.82008945,656.09,654.21,0.59892471]
[1747826378873,3.82008945,656.09,654.2,0.30550714]
[1747826379075,3.82008945,656.09,654.21,0.59879]
[1747826379275,3.82008945,656.09,654.2,0.30550714]
[1747826379482,3.82008945,656.09,654.21,0.30550714]
[1747826380279,3.82008945,656.09,654.22,0.30550714]
[1747826382082,3.82008945,656.09,654.23,0.30550714]
[1747826383585,3.82008945,656.09,654.24,0.30550714]
[1747826384383,3.82008945,656.09,654.25,0.30550714]
[1747826386183,3.82008945,656.09,654.26,0.30550714]
[1747826387587,3.82008945,656.09,654.27,0.30550714]
[1747826388983,3.82008945,656.29,654.28,0.30550714]
[1747826390496,3.82008945,656.29,654.29,0.30550714]
[1747826392081,3.82008945,656.29,654.0,0.29176825]
[1747826392282,3.82008945,656.29,654.01,2.0619759]
[1747826392583,3.82008945,656.29,654.02,0.90300946]
[1747826392782,3.82008945,656.29,654.03,0.90300946]
[1747826392982,3.82008945,656.29,654.04,2.0619852]
[1747826393183,3.82008945,656.29,654.05,0.59753552]
[1747826393587,3.82008945,656.29,654.06,1.15896644]
[1747826393787,3.82008945,656.29,654.07,0.59753552]
[1747826394189,3.82008945,656.29,654.08,0.59753552]
[1747826394382,3.82008945,656.29,654.04,0.30548324]
[1747826394585,3.82008945,656.29,654.05,0.59775662]
[1747826394891,3.82008945,656.29,654.09,0.30548324]
[1747826396592,3.82008945,656.29,653.88,0.30548324]
[1747826396792,3.82008945,656.29,653.89,2.06261035]
[1747826397091,3.82008945,656.29,653.9,2.06261035]
[1747826397287,3.82008945,656.29,653.91,0.90319492]
[1747826397492,3.82008945,656.29,653.92,2.06261035]
[1747826397792,3.82008945,656.29,653.93,0.90319492]
[1747826397992,3.82008945,656.29,653.94,0.90319492]
[1747826398194,3.82008945,656.29,653.95,0.90336357]
[1747826398391,3.82008945,656.29,653.96,2.062779]
[1747826398591,3.82008945,656.29,653.97,0.90336357]
[1747826398793,3.82008945,656.29,653.98,0.90336357]
[1747826399094,3.82008945,656.29,653.99,2.062779]
[1747826399295,3.82008945,656.29,654.0,2.062779]
[1747826399494,3.82008945,656.29,654.01,0.90336357]
[1747826399794,3.82008945,656.29,654.02,2.06277975]
[1747826400096,3.82008945,656.29,654.03,0.90348115]
[1747826400294,3.82008945,656.29,654.04,1.75739488]
[1747826400494,3.82008945,656.29,654.05,0.59797945]
[1747826400994,3.82008945,656.29,654.06,0.59797945]
[1747826401195,3.82008945,656.29,654.03,0.30548324]
[1747826401394,3.82008945,656.29,654.04,0.59798476]
[1747826401595,3.82008945,656.29,654.05,0.59798476]
[1747826401796,3.82008945,656.29,654.06,0.59798476]
[1747826402096,3.82008945,656.29,654.07,0.59798476]
[1747826402290,3.82008945,656.29,654.08,0.59798476]
[1747826402492,3.82008945,656.29,654.09,0.59798476]
[1747826402692,3.82008945,656.29,653.89,0.30548324]
[1747826402896,3.82008945,655.8,654.09,0.30548324]
[1747826403996,3.82008945,655.8,653.87,0.30548324]
[1747826404198,3.82008945,655.8,653.88,2.06298112]
[1747826404402,3.82008945,655.8,653.89,0.90366299]
[1747826404600,3.82008945,655.8,653.9,0.90366094]
[1747826404799,3.82008945,655.8,653.91,2.06297907]
[1747826404998,3.82008945,655.8,653.92,0.90366094]
[1747826405294,3.82008945,655.8,653.93,2.06297907]
[1747826405500,3.82008945,655.8,653.94,0.90366094]
[1747826405698,3.82008945,655.8,653.95,0.90366094]
[1747826405898,3.82008945,655.8,653.96,2.06297907]
[1747826406193,3.82008945,655.8,653.97,0.90366094]
[1747826406398,3.82008945,655.8,653.98,2.06295119]
[1747826406598,3.82008945,655.8,653.99,2.06295119]
[1747826406795,3.82008945,655.8,654.0,0.90363306]
[1747826406998,3.82008945,655.8,654.01,1.2091163]
[1747826407193,3.82008945,655.8,654.02,2.06295119]
[1747826407400,3.82008945,655.8,654.03,0.90363306]
[1747826407601,3.82008945,655.8,654.04,2.06295119]
[1747826407800,3.82008945,655.8,654.05,0.90363306]
[1747826408000,3.82008945,655.8,654.04,1.15931813]
[1747826408197,3.82008945,655.8,654.06,1.15931813]
[1747826408402,3.82008945,655.8,654.07,0.59746436]
[1747826408605,3.82008945,655.8,654.07,0.9029476]
[1747826408803,3.82008945,655.8,654.08,0.59746436]
[1747826409003,3.82008945,655.8,654.09,1.15931813]
[1747826409203,3.82008945,655.8,654.1,0.59746436]
[1747826409404,3.82008945,655.8,654.11,1.15931813]
[1747826409602,3.82008945,655.8,654.12,0.59746436]
[1747826409903,3.82008945,655.8,654.13,0.30548324]
[1747826410096,3.82008945,655.8,654.14,0.59746436]
[1747826411205,3.82008945,655.8,654.15,0.30548324]
[1747826411402,3.82008945,655.8,654.16,0.59746436]
[1747826412504,3.82008945,655.8,654.17,0.30548324]
[1747826412708,3.82008945,655.8,654.18,0.59746436]
[1747826413209,3.82008945,655.8,654.17,0.30548324]
[1747826413509,3.82008945,655.8,654.18,0.59788971]
[1747826413809,3.82008945,655.8,654.19,0.59788971]
[1747826414009,3.82008945,655.8,654.17,0.30548324]
[1747826414212,5.34812523,655.78,654.2,0.30548324]
[1747826415309,5.34812523,655.78,654.21,0.59817308]
[1747826415510,5.34812523,655.78,654.2,0.30548324]
[1747826415710,5.34812523,655.78,654.22,0.30548324]
[1747826417713,3.82008945,655.62,654.23,0.30548324]
[1747826419413,3.82008945,655.62,654.24,0.59858927]
[1747826419613,3.82008945,655.62,654.23,0.30548324]
[1747826419813,3.82008945,655.62,654.25,0.30548324]
[1747826420815,0.26577058,655.61,654.25,0.30548324]
[1747826421414,0.26577058,655.61,654.26,0.59910982]
[1747826421616,0.26577058,655.61,654.25,0.30548324]
[1747826421817,0.26577058,655.61,654.26,0.90459506]
[1747826422013,0.26577058,655.61,654.27,0.59892547]
[1747826422216,0.26577058,655.61,654.28,0.59892547]
[1747826422514,0.26577058,655.61,654.29,0.59892547]
[1747826422715,0.26577058,655.61,654.3,0.90440871]
[1747826422916,0.26577058,655.61,654.31,0.59892547]
[1747826423218,0.26577058,655.61,654.3,0.30548324]
[1747826423418,0.26577058,655.61,654.31,0.59896766]
[1747826423718,0.26577058,655.61,654.3,0.30548324]
[1747826424018,0.26577058,655.61,654.32,0.30548324]
[1747826425213,3.82008945,655.62,654.32,0.30548324]
[1747826425518,0.26576449,655.6,654.33,0.30548324]
[1747826427022,0.26576449,655.6,654.34,0.30548324]
[1747826428122,3.82008945,655.62,654.34,0.30548324]
[1747826428418,3.82008945,655.62,654.35,0.30548324]
[1747826428622,0.26576551,655.61,654.35,0.30548324]
[1747826429320,0.26576551,655.61,654.36,0.30548324]
[1747826430525,0.26576551,655.61,654.37,0.30548324]
[1747826431126,3.82008945,655.62,654.37,0.30548324]
[1747826431527,0.26577464,655.61,654.37,0.30548324]
[1747826432027,0.26577464,655.61,654.06,0.29176825]
[1747826432226,0.26577464,655.61,654.07,0.90413672]
[1747826432426,0.26577464,655.61,654.08,0.90413672]
[1747826432626,0.26577464,655.61,654.09,0.90492834]
[1747826432829,0.26577464,655.61,654.1,2.07046166]
[1747826433023,0.26577464,655.61,654.11,1.21041348]
[1747826433223,0.26577464,655.61,654.12,2.07046166]
[1747826433424,0.26577464,655.61,654.13,0.90493058]
[1747826433625,0.26577464,655.61,654.14,2.0704639]
[1747826433924,0.26577464,655.61,654.15,0.90493058]
[1747826434124,0.26577464,655.61,654.16,0.90493058]
[1747826434324,0.26577464,655.61,654.17,0.9044941]
[1747826434528,0.26577464,655.61,654.18,0.9044941]
[1747826434726,0.26577464,655.61,654.19,2.07002742]
[1747826435029,0.26577464,655.61,654.2,2.07002742]
[1747826435330,0.26577464,655.61,654.21,0.9044941]
[1747826435531,0.26577464,655.61,654.22,0.59900831]
[1747826435732,0.26577464,655.61,654.23,0.90449345]
[1747826435932,0.26577464,655.61,654.24,0.59900831]
[1747826436132,0.26577464,655.61,654.25,0.59900831]
[1747826436334,0.26577464,655.61,654.26,0.59900831]
[1747826436536,0.26577464,655.61,654.27,0.59900831]
[1747826436735,0.26577464,655.61,654.28,0.59900831]
[1747826436929,0.26577464,655.61,654.29,0.59900831]
[1747826437135,3.82008945,655.65,654.3,0.59900831]
[1747826437436,3.82008945,655.65,654.31,0.59900831]
[1747826437735,0.26573811,655.64,654.29,0.30548514]
[1747826437929,0.26573811,655.64,654.3,0.59851783]
[1747826438132,0.26573811,655.64,654.31,0.59851783]
[1747826438333,0.26573811,655.64,654.32,0.30548514]
[1747826439435,0.26573811,655.64,654.11,0.29176825]
[1747826439633,0.26573811,655.64,654.12,2.06886204]
[1747826439831,0.26573811,655.64,654.13,2.06886204]
[1747826440030,0.26573811,655.64,654.14,0.90392134]
[1747826440335,0.26573811,655.64,654.15,2.06886204]
[1747826440538,0.26573811,655.64,654.16,0.90392134]
[1747826440733,0.26573811,655.64,654.17,1.20940648]
[1747826440931,0.26573811,655.64,654.18,2.06886204]
[1747826441132,0.26573811,655.64,654.19,0.90392134]
[1747826441437,0.26573811,655.64,654.2,0.90392064]
[1747826441638,0.26573811,655.64,654.21,0.90392064]
[1747826441840,0.26573811,655.64,654.22,0.59843677]
[1747826442036,0.26573811,655.64,654.23,0.59843677]
[1747826442236,0.26573811,655.64,654.24,1.76337747]
[1747826442433,5.34812523,655.63,654.25,0.59843677]
[1747826442632,5.34812523,655.63,654.26,0.59843677]
[1747826442838,5.34812523,655.63,654.27,0.59843677]
[1747826443138,5.34812523,655.63,654.28,0.59806875]
[1747826443330,5.34812523,655.63,654.29,0.59806875]
[1747826443532,0.26574217,655.62,654.3,0.59806875]
[1747826443735,0.26574217,655.62,654.31,0.90355389]
[1747826444035,0.26574217,655.62,654.32,0.59806875]
[1747826444232,0.26574217,655.62,654.33,0.59806875]
[1747826444436,0.26574217,655.62,654.31,0.30548514]
[1747826444635,0.26574217,655.62,654.32,0.59777652]
[1747826444834,0.26574217,655.62,654.33,0.59777652]
[1747826445031,0.26574217,655.62,654.31,0.30548514]
[1747826445237,0.26574217,655.62,654.32,0.59777591]
[1747826445436,0.26574217,655.62,654.33,0.59777591]
[1747826445631,0.26574217,655.62,654.31,0.30548514]
[1747826445632,0.26574217,655.62,654.34,0.59777591]
[1747826445837,0.26574217,655.62,654.31,0.30548514]
[1747826446138,5.34812523,655.63,654.32,0.9032912]
[1747826446139,3.82008945,655.52,654.32,0.9032912]
[1747826446333,3.82008945,655.52,654.33,0.59780606]
[1747826446733,3.82008945,655.52,654.34,0.59795746]
[1747826446934,3.82008945,655.52,654.32,0.30548514]
[1747826447137,3.82008945,655.52,654.33,0.59794865]
[1747826447335,3.82008945,655.52,654.34,0.59794865]
[1747826447538,3.82008945,655.52,654.32,0.30548514]
[1747826447741,3.82008945,655.52,654.33,0.90339629]
[1747826448035,3.82008945,655.52,654.34,0.59791115]
[1747826448239,3.82008945,655.52,654.33,0.30548514]
[1747826448434,3.82008945,655.52,654.34,0.59792332]
[1747826448637,3.82008945,655.52,654.33,0.30548514]
[1747826448835,3.82008945,655.52,654.34,0.59791321]
[1747826449035,3.82008945,655.52,654.35,0.30548514]
[1747826449443,0.26576652,655.51,654.35,0.30548514]
[1747826450445,0.26576652,655.51,654.36,0.30548514]
[1747826452146,3.82008945,655.52,654.37,0.30548514]
[1747826452447,0.26576652,655.5,654.37,0.30548514]
[1747826453246,0.26576652,655.5,654.12,0.29176825]
[1747826453447,0.26576652,655.5,654.13,0.9046439]
[1747826453741,0.26576652,655.5,654.12,0.29176825]
[1747826453742,0.26576652,655.5,654.14,2.06917]
[1747826453946,0.26576652,655.5,654.15,0.9046439]
[1747826454142,0.26576652,655.5,654.16,0.9046439]
[1747826454346,0.26576652,655.5,654.17,0.9046439]
[1747826454543,0.26576652,655.5,654.18,2.06917]
[1747826454743,0.26576652,655.5,654.19,0.9046439]
[1747826454944,0.26576652,655.5,654.2,0.9046439]
[1747826455145,3.82008945,655.52,654.21,0.90465014]
[1747826455344,3.82008945,655.52,654.22,0.59916166]
[1747826455546,0.26576145,655.49,654.23,0.59903513]
[1747826455849,0.26576145,655.49,654.24,1.76356123]
[1747826456144,0.26576145,655.49,654.25,0.90452404]
[1747826456349,0.26576145,655.49,654.26,0.59903513]
[1747826456549,0.26576145,655.49,654.27,0.59903513]
[1747826456749,0.26576145,655.49,654.28,0.59903513]
[1747826456945,0.26576145,655.49,654.29,0.59903513]
[1747826457147,0.26576145,655.49,654.3,0.59903513]
[1747826457345,0.26576145,655.49,654.31,0.59930071]
[1747826457545,0.26576145,655.49,654.3,0.30548891]
[1747826457746,0.26576145,655.49,654.31,0.59933929]
[1747826458050,3.82008945,655.52,654.3,0.30548891]
[1747826458246,3.82008945,655.52,654.31,0.59952472]
[1747826458446,3.82008945,655.52,654.3,0.30548891]
[1747826458447,0.26575029,655.48,654.3,0.30548891]
[1747826458647,0.26575029,655.48,654.32,0.30548891]
[1747826459851,3.82008945,655.28,654.13,0.29176825]
[1747826460044,3.82008945,655.28,654.14,2.07090342]
[1747826460249,3.82008945,655.28,654.15,0.90507651]
[1747826460446,3.82008945,655.28,654.16,2.07090342]
[1747826460646,3.82008945,655.28,654.17,0.90507651]
[1747826460851,3.82008945,655.28,654.18,0.90507651]
[1747826461152,3.82008945,655.28,654.19,2.07090342]
[1747826461351,3.82008945,655.28,654.2,0.90507651]
[1747826461553,3.82008945,655.28,654.21,2.07090342]
[1747826461752,3.82008945,655.28,654.22,0.59958587]
[1747826461953,3.82008945,655.28,654.22,0.59968491]
[1747826462154,3.82008945,655.28,654.23,0.59968491]
[1747826462348,3.82008945,655.28,654.24,0.59968491]
[1747826462551,3.82008945,655.28,654.25,0.59968491]
[1747826462754,3.82008945,655.28,654.26,0.59968491]
[1747826462947,3.82008945,655.28,654.27,0.59968491]
[1747826463152,3.82008945,655.28,654.28,0.59968491]
[1747826463353,3.82008945,655.28,654.29,0.59968491]
[1747826463652,3.82008945,655.28,654.25,0.30548891]
[1747826463851,3.82008945,655.28,654.26,0.59957138]
[1747826464053,3.82008945,655.28,654.27,0.59957138]
[1747826464249,3.82008945,655.28,654.28,0.59957138]
[1747826465453,3.82008945,655.28,654.29,0.59986327]
[1747826465649,3.82008945,655.28,654.27,0.30548891]
[1747826465848,3.82008945,655.28,654.28,0.59983089]
[1747826466050,3.82008945,655.28,654.29,0.59983089]
[1747826466250,3.82008945,655.28,654.11,0.30548891]
[1747826466453,3.82008945,655.28,654.12,0.90527912]
[1747826466654,3.82008945,655.28,654.13,0.90527912]
[1747826466853,3.82008945,655.28,654.14,0.90527912]
[1747826467155,3.82008945,655.28,654.15,2.07087998]
[1747826467350,3.82008945,655.28,654.16,1.21058989]
[1747826467551,3.82008945,655.28,654.17,0.90510098]
[1747826467749,3.82008945,655.28,654.18,0.90510098]
[1747826467952,3.82008945,655.28,654.19,0.90510098]
[1747826468251,3.82008945,655.28,654.2,0.59959408]
[1747826468449,3.82008945,655.28,654.21,0.59959408]
[1747826468751,3.82008945,655.28,654.22,0.59959408]
[1747826468949,3.82008945,655.28,654.23,0.59938536]
[1747826469253,3.82008945,655.28,654.24,0.30548891]
[1747826469954,3.82008945,655.28,654.11,0.30548891]
[1747826470155,3.82008945,655.28,654.12,0.90475938]
[1747826470454,3.82008945,655.28,654.13,2.0690813]
[1747826470654,3.82008945,655.28,654.14,0.90475938]
[1747826470854,3.82008945,655.28,654.15,0.9047891]
[1747826471055,3.82008945,655.28,654.16,2.06911102]
[1747826471255,3.82008945,655.28,654.17,0.59927394]
[1747826471456,3.82008945,655.28,654.18,1.16432192]
[1747826471656,3.82008945,655.28,654.19,0.59927394]
[1747826472157,3.82008945,655.31,654.2,0.90476285]
[1747826472357,3.82008945,655.31,654.21,0.59927394]
[1747826473553,3.82008945,655.31,654.22,0.30548891]
[1747826473752,3.82008945,655.31,654.23,0.59927394]
[1747826474958,3.82008945,655.31,654.24,0.30548891]
[1747826475157,3.82008945,655.31,654.25,0.59927394]
[1747826475459,3.82008945,655.31,654.26,0.30548891]
[1747826476058,3.82008945,655.31,654.07,0.30548891]
[1747826476359,3.82008945,655.31,654.08,2.07048126]
[1747826476561,3.82008945,655.31,654.09,1.21068052]
[1747826476758,3.82008945,655.31,654.1,0.90519161]
[1747826476952,3.82008945,655.31,654.11,0.90519161]
[1747826477152,3.82008945,655.31,654.12,0.90519161]
[1747826477353,3.82008945,655.31,654.13,0.90519161]
[1747826477557,3.82008945,655.31,654.14,2.07048126]
[1747826477753,3.82008945,655.31,654.15,2.37597017]
[1747826477953,3.82008945,655.31,654.16,0.90519161]
[1747826478157,3.82008945,655.31,654.17,0.59999978]
[1747826478457,3.82008945,655.31,654.18,2.07077834]
[1747826478656,3.82008945,655.31,654.19,0.59999978]
[1747826478859,3.82008945,655.31,654.2,1.16528965]
[1747826479059,3.82008945,655.31,654.21,0.59999978]
[1747826479759,0.26581626,655.39,654.21,0.59999978]
[1747826479760,0.26581626,655.39,654.22,0.30548891]
[1747826479959,0.26581626,655.39,654.23,0.59999978]
[1747826480553,0.26581626,655.39,654.24,0.30548891]
[1747826480760,0.26581626,655.39,654.25,0.59999978]
[1747826481553,0.26581626,655.39,653.76,0.58402648]
[1747826481554,0.26581626,655.39,654.26,0.6003503]
[1747826481959,0.26581626,655.39,653.69,0.90589556]
[1747826482259,0.26581626,655.39,653.7,2.07246474]
[1747826482455,0.26581626,655.39,653.71,0.90589556]
[1747826482756,0.26581626,655.39,653.72,0.90589556]
[1747826482955,0.26581626,655.39,653.73,2.07246474]
[1747826483159,0.26581626,655.39,653.74,0.90589556]
[1747826483359,0.26581626,655.39,653.75,0.90589556]
[1747826483658,0.26581626,655.39,653.73,1.16656918]
[1747826483659,0.26581626,655.39,653.76,2.07246474]
[1747826483860,0.26581626,655.39,653.77,0.90589556]
[1747826484055,0.26581626,655.39,653.78,2.07246474]
[1747826484258,0.26581626,655.39,653.79,0.90589556]
[1747826484458,0.26581626,655.39,653.8,2.07246474]
[1747826484658,0.26581626,655.39,653.81,0.90589556]
[1747826484860,3.81300083,655.37,654.07,0.29098752]
[1747826485060,3.81300083,655.37,654.08,0.90589556]
[1747826485261,3.81300083,655.37,654.09,2.07246474]
[1747826485461,3.81300083,655.37,654.1,0.90589556]
[1747826485657,3.81300083,655.37,654.11,2.07246474]
[1747826485861,3.81300083,655.37,654.12,1.21141216]
[1747826486064,3.81300083,655.37,654.13,2.07246474]
[1747826486263,3.81300083,655.37,654.14,0.60037913]
[1747826486463,3.81300083,655.37,654.15,1.16656918]
[1747826486664,3.81300083,655.37,654.16,0.60037913]
[1747826486867,3.81300083,655.37,654.17,0.60058193]
[1747826487165,3.81300083,655.37,654.18,0.60058193]
[1747826487366,3.81300083,655.37,654.19,0.60058193]
[1747826487566,3.81300083,655.37,654.2,0.60058193]
[1747826487767,3.81300083,655.37,654.21,0.60058193]
[1747826487964,3.81300083,655.37,654.22,0.60058193]
[1747826488161,3.81300083,655.37,654.18,0.3055166]
[1747826488364,3.81300083,655.37,654.19,0.60071485]
[1747826488560,3.81300083,655.37,654.2,0.60071892]
[1747826488761,3.81300083,655.37,654.21,0.60071892]
[1747826488966,3.81300083,655.37,654.22,0.60071892]
[1747826489167,3.81300083,655.37,654.05,0.3055166]
[1747826489362,3.81300083,655.37,654.06,0.90621137]
[1747826489567,3.81300083,655.37,654.07,0.90621137]
[1747826489768,3.81300083,655.37,654.08,0.60067856]
[1747826490560,3.81300083,655.37,654.09,0.60067856]
[1747826490763,3.81300083,655.37,654.1,0.60067856]
[1747826492671,0.2658193,655.36,654.11,0.3055166]
[1747826493472,0.2658193,655.36,653.93,0.3055166]
[1747826493671,0.2658193,655.36,653.94,0.90630353]
[1747826493867,0.2658193,655.36,653.95,0.9062615]
[1747826494068,0.2658193,655.36,653.96,0.90626113]
[1747826494267,3.81300083,655.37,653.97,0.90626113]
[1747826494471,3.81300083,655.37,653.98,0.90626113]
[1747826494670,3.81300083,655.37,653.99,2.07580785]
[1747826494873,3.81300083,655.37,654.0,0.90626113]
[1747826495072,3.81300083,655.37,654.01,0.90626113]
[1747826495372,0.26583758,655.36,654.02,2.07580785]
[1747826495572,0.26583758,655.36,654.03,0.60069067]
[1747826495771,0.26583758,655.36,654.04,1.77023739]
[1747826495971,0.26583758,655.36,654.05,0.60069067]
[1747826496168,0.26583758,655.36,654.06,0.60069067]
[1747826496469,0.26583758,655.36,654.07,0.90620727]
[1747826496672,0.26583758,655.36,654.08,0.60069067]
[1747826496872,0.26583758,655.36,654.09,0.60069067]
[1747826497074,0.26583758,655.36,654.1,0.60069067]
[1747826497274,3.81300083,655.37,654.11,0.60069067]
[1747826497476,0.26582844,655.35,654.07,0.3055166]
[1747826497677,0.26582844,655.35,654.08,0.60007366]
[1747826497872,0.26582844,655.35,654.09,0.60007366]
[1747826498077,0.26582844,655.35,654.1,0.60007366]
[1747826498377,0.26582844,655.35,654.09,0.3055166]
[1747826498577,0.26582844,655.35,654.1,0.60004601]
[1747826498773,0.26582844,655.35,654.09,0.3055166]
[1747826498978,0.26582844,655.35,654.1,0.60006362]
[1747826499178,0.26582844,655.35,654.09,0.3055166]
[1747826499371,0.26582844,655.35,654.11,0.3055166]
[1747826500880,0.26582844,655.35,653.92,0.3055166]
[1747826501079,0.26582844,655.35,653.93,0.9056224]
[1747826501279,0.26582844,655.35,653.94,2.07282839]
[1747826501475,0.26582844,655.35,653.95,0.9056224]
[1747826501777,0.26582844,655.35,653.96,1.76724437]
[1747826501983,0.26582844,655.35,653.97,0.60003838]
[1747826502183,0.26582844,655.35,653.98,1.76724437]
[1747826502479,0.26582844,655.35,653.99,0.90555498]
[1747826502684,0.26582844,655.35,654.0,0.60003838]
[1747826502882,0.26582844,655.35,654.01,0.60003838]
[1747826503086,0.26582844,655.35,654.02,0.60003838]
[1747826503279,3.81300083,655.36,654.03,0.60003838]
[1747826503481,3.81300083,655.36,654.04,0.60003838]
[1747826503683,3.81300083,655.36,654.04,0.3055166]
[1747826504387,3.81300083,655.36,654.05,0.60008251]
[1747826504584,0.26585586,655.35,654.04,0.3055166]
[1747826504782,0.26585586,655.35,654.05,0.60008897]
[1747826504984,0.26585586,655.35,654.04,0.3055166]
[1747826505185,0.26585586,655.35,654.05,0.60011544]
[1747826505381,0.26585586,655.35,654.06,0.3055166]
[1747826506188,3.81300083,655.36,654.06,0.3055166]
[1747826506889,3.81300083,655.36,653.86,0.59650412]
[1747826507188,3.81300083,655.36,653.87,2.07360587]
[1747826507387,3.81300083,655.36,653.88,0.90588362]
[1747826507587,0.26585484,655.35,653.89,2.07360587]
[1747826507783,0.26585484,655.35,653.9,1.21140022]
[1747826507989,0.26585484,655.35,653.91,2.07360677]
[1747826508290,0.26585484,655.35,653.92,0.90588452]
[1747826508591,0.26585484,655.35,653.93,2.07360677]
[1747826508788,0.26585484,655.35,653.94,0.90588452]
[1747826508986,0.26585484,655.35,653.95,2.07360677]
[1747826509186,3.81300083,655.36,653.96,0.60043013]
[1747826509390,3.81300083,655.36,653.97,1.76815238]
[1747826509592,0.2658457,655.34,653.98,0.60043013]
[1747826509785,0.2658457,655.34,653.99,0.60044713]
[1747826509985,0.2658457,655.34,654.0,0.60044713]
[1747826510184,0.2658457,655.34,654.01,0.60044713]
[1747826510387,0.2658457,655.34,654.02,0.60044713]
[1747826510590,0.2658457,655.34,654.03,0.60044713]
[1747826510790,0.2658457,655.34,654.04,0.60044713]
[1747826510990,0.2658457,655.34,653.99,0.3055166]
[1747826510991,0.2658457,655.34,654.05,0.60044713]
[1747826511194,0.2658457,655.34,654.06,0.60045957]
[1747826511394,0.2658457,655.34,653.99,0.3055166]
[1747826511591,0.2658457,655.34,654.0,1.7686022]
[1747826511787,0.2658457,655.34,654.01,0.60045787]
[1747826512192,3.81300083,655.36,654.02,0.60045787]
[1747826512390,3.81300083,655.36,654.03,0.60045787]
[1747826512591,0.26583961,655.33,654.04,0.60045787]
[1747826512790,0.26583961,655.33,654.05,0.60045787]
[1747826512994,0.26583961,655.33,654.06,0.60078968]
[1747826513198,0.26583961,655.33,654.04,0.3055166]
[1747826513397,0.26583961,655.33,654.05,0.60080907]
[1747826513599,0.26583961,655.33,654.06,0.60080907]
[1747826513793,0.26583961,655.33,654.04,0.3055166]
[1747826513996,0.26583961,655.33,654.05,0.60082194]
[1747826514292,0.26583961,655.33,654.06,0.60082194]
[1747826514497,0.26583961,655.33,654.07,0.60082699]
[1747826514696,0.26583961,655.33,654.04,0.3055166]
[1747826514697,0.26583961,655.33,654.08,0.60078845]
[1747826514899,0.26583961,655.33,654.08,0.3055166]
[1747826515091,0.26583961,655.33,654.09,1.7684838]
[1747826515296,3.81300083,655.43,654.1,0.60064285]
[1747826515494,0.26582743,655.37,654.1,0.60064285]
[1747826515792,0.26582743,655.37,654.11,0.60064285]
[1747826515998,0.26582743,655.37,654.12,0.60064285]
[1747826516194,0.26582743,655.37,654.13,0.60064285]
[1747826516398,0.26582743,655.37,654.14,0.60064285]
[1747826516602,0.26582743,655.37,654.15,0.60064285]
[1747826517798,0.26582743,655.37,654.16,0.3055166]
[1747826518200,3.81300083,655.52,654.16,0.3055166]
[1747826518501,0.26581017,655.37,654.16,0.3055166]
[1747826518694,3.81300083,655.52,654.16,0.3055166]
[1747826519200,3.81300083,655.52,654.17,0.6011005]
[1747826519399,3.81300083,655.52,653.95,0.3055166]
[1747826519599,3.81300083,655.52,653.96,2.07538496]
[1747826519600,0.26581017,655.51,653.96,2.07538496]
[1747826519800,0.26581017,655.51,653.97,0.90663772]
[1747826519998,0.26581017,655.51,653.98,2.07538496]